[Event "Early Titled Tuesday Blitz | February 8 2022"]
[White "Guliev, Logman"]
[Black "Delorme, Alban"]
[WhiteFideId "13400061"]
[BlackFideId "623636"]
[WhiteElo "2128"]
[BlackElo "2197"]
[Result "1-0"]
[Round "04"]
[TimeControl "180+1"]
[Date "2022.02.08"]
[WhiteClock "0:00:52"]
[BlackClock "0:00:05"]

1. e4 {[%clk 0:02:59]}  c5 {[%clk 0:02:41]} 2. Nf3 {[%clk 0:02:58]}  d6 {[%clk 0:02:40]} 3. d4 {[%clk 0:02:58]}  cxd4 {[%clk 0:02:39]} 4. Nxd4 {[%clk 0:02:59]}  Nf6 {[%clk 0:02:40]} 5. Nc3 {[%clk 0:02:59]}  a6 {[%clk 0:02:40]} 6. Be2 {[%clk 0:02:58]}  e5 {[%clk 0:02:40]} 7. Nb3 {[%clk 0:02:57]}  Be6 {[%clk 0:02:38]} 8. Bg5 {[%clk 0:02:57]}  Be7 {[%clk 0:02:38]} 9. Bxf6 {[%clk 0:02:57]}  Bxf6 {[%clk 0:02:39]} 10. Qd3 {[%clk 0:02:57]}  Nc6 {[%clk 0:02:36]} 11. O-O-O {[%clk 0:02:57]}  Be7 {[%clk 0:02:34]} 12. Kb1 {[%clk 0:02:57]}  O-O {[%clk 0:02:34]} 13. Nd5 {[%clk 0:02:56]}  Bxd5 {[%clk 0:02:33]} 14. Qxd5 {[%clk 0:02:56]}  a5 {[%clk 0:02:30]} 15. c3 {[%clk 0:02:54]}  a4 {[%clk 0:02:30]} 16. Nd2 {[%clk 0:02:54]}  Qb6 {[%clk 0:02:26]} 17. Nc4 {[%clk 0:02:52]}  Qxf2 {[%clk 0:02:25]} 18. Bh5 {[%clk 0:02:35]}  g6 {[%clk 0:02:21]} 19. Bf3 {[%clk 0:02:28]}  Qc5 {[%clk 0:02:19]} 20. Qxc5 {[%clk 0:02:23]}  dxc5 {[%clk 0:02:19]} 21. Rd7 {[%clk 0:02:21]}  Rab8 {[%clk 0:02:02]} 22. Nxe5 {[%clk 0:02:15]}  Nxe5 {[%clk 0:01:46]} 23. Rxe7 {[%clk 0:02:15]}  Rfe8 {[%clk 0:01:43]} 24. Rxe8+ {[%clk 0:02:13]}  Rxe8 {[%clk 0:01:44]} 25. Rd1 {[%clk 0:02:12]}  Kf8 {[%clk 0:01:35]} 26. Rd5 {[%clk 0:02:05]}  b6 {[%clk 0:01:34]} 27. Be2 {[%clk 0:02:03]}  c4 {[%clk 0:01:03]} 28. Rb5 {[%clk 0:02:00]}  Nd3 {[%clk 0:00:51]} 29. Bf3 {[%clk 0:01:46]}  Re6 {[%clk 0:00:43]} 30. Rd5 {[%clk 0:01:33]}  Ke7 {[%clk 0:00:33]} 31. b3 {[%clk 0:01:33]}  axb3 {[%clk 0:00:29]} 32. axb3 {[%clk 0:01:33]}  Nc5 {[%clk 0:00:28]} 33. bxc4 {[%clk 0:01:27]}  Nxe4 {[%clk 0:00:28]} 34. Kc2 {[%clk 0:01:25]}  Nc5 {[%clk 0:00:27]} 35. Rd2 {[%clk 0:01:22]}  Rd6 {[%clk 0:00:26]} 36. Bd5 {[%clk 0:01:20]}  f5 {[%clk 0:00:23]} 37. Re2+ {[%clk 0:01:19]}  Kf6 {[%clk 0:00:22]} 38. Re8 {[%clk 0:01:20]}  b5 {[%clk 0:00:18]} 39. Rc8 {[%clk 0:01:18]}  bxc4 {[%clk 0:00:17]} 40. Rxc5 {[%clk 0:01:16]}  Ke5 {[%clk 0:00:17]} 41. Bxc4+ {[%clk 0:01:15]}  Ke4 {[%clk 0:00:18]} 42. Be2 {[%clk 0:01:12]}  Ke3 {[%clk 0:00:18]} 43. Bf3 {[%clk 0:01:11]}  Rf6 {[%clk 0:00:10]} 44. Re5+ {[%clk 0:01:08]}  Kf2 {[%clk 0:00:10]} 45. Re2+ {[%clk 0:01:07]}  Kf1 {[%clk 0:00:10]} 46. h4 {[%clk 0:01:07]}  h6 {[%clk 0:00:10]} 47. c4 {[%clk 0:01:07]}  g5 {[%clk 0:00:10]} 48. hxg5 {[%clk 0:01:07]}  hxg5 {[%clk 0:00:11]} 49. c5 {[%clk 0:01:07]}  g4 {[%clk 0:00:11]} 50. Kd3 {[%clk 0:00:55]}  gxf3 {[%clk 0:00:11]} 51. gxf3 {[%clk 0:00:56]}  Rc6 {[%clk 0:00:10]} 52. Rc2 {[%clk 0:00:56]}  Kg1 {[%clk 0:00:01]} 53. Kd4 {[%clk 0:00:55]}  Rc8 {[%clk 0:00:01]} 54. c6 {[%clk 0:00:55]}  Rd8+ {[%clk 0:00:02]} 55. Ke5 {[%clk 0:00:54]}  Rc8 {[%clk 0:00:02]} 56. c7 {[%clk 0:00:54]}  Kf1 {[%clk 0:00:01]} 57. Kxf5 {[%clk 0:00:54]}  Ke1 {[%clk 0:00:01]} 58. Ke5 {[%clk 0:00:53]}  Kd1 {[%clk 0:00:02]} 59. Rc5 {[%clk 0:00:52]}  Ke2 {[%clk 0:00:03]} 60. f4 {[%clk 0:00:52]}  Kf3 {[%clk 0:00:03]} 61. f5 {[%clk 0:00:52]}  Kg4 {[%clk 0:00:04]} 62. Kd6 {[%clk 0:00:52]}  Kg5 {[%clk 0:00:03]} 63. Kd7 {[%clk 0:00:52]}  Rf8 {[%clk 0:00:04]} 64. c8=Q {[%clk 0:00:52]}  Rxc8 {[%clk 0:00:05]} 65. Kxc8 {[%clk 0:00:52]} 1-0


[Site "https://www.chess.com"]

[Event "Early Titled Tuesday Blitz | February 8 2022"]
[White "Hansen, Eric"]
[Black "Idrisov, Ildar F"]
[WhiteFideId "2606771"]
[BlackFideId "4151020"]
[WhiteElo "2568"]
[BlackElo "2209"]
[Result "1-0"]
[Round "04"]
[TimeControl "180+1"]
[Date "2022.02.08"]
[WhiteClock "0:02:04"]
[BlackClock "0:01:52"]

1. e4 {[%clk 0:03:00]}  c6 {[%clk 0:02:58]} 2. Nc3 {[%clk 0:03:01]}  d5 {[%clk 0:02:58]} 3. Nf3 {[%clk 0:03:01]}  dxe4 {[%clk 0:02:58]} 4. Nxe4 {[%clk 0:03:02]}  Nd7 {[%clk 0:02:58]} 5. d4 {[%clk 0:03:02]}  Ngf6 {[%clk 0:02:58]} 6. Nxf6+ {[%clk 0:03:03]}  Nxf6 {[%clk 0:02:57]} 7. Bc4 {[%clk 0:03:03]}  Bg4 {[%clk 0:02:55]} 8. Bxf7+ {[%clk 0:02:57]}  Kxf7 {[%clk 0:02:53]} 9. Ne5+ {[%clk 0:02:58]}  Ke8 {[%clk 0:02:49]} 10. Nxg4 {[%clk 0:02:58]}  Qd5 {[%clk 0:02:48]} 11. Ne3 {[%clk 0:02:58]}  Qa5+ {[%clk 0:02:45]} 12. c3 {[%clk 0:02:58]}  Rd8 {[%clk 0:02:44]} 13. O-O {[%clk 0:02:58]}  c5 {[%clk 0:02:44]} 14. d5 {[%clk 0:02:48]}  c4 {[%clk 0:02:42]} 15. Nxc4 {[%clk 0:02:44]}  Qxd5 {[%clk 0:02:42]} 16. Qb3 {[%clk 0:02:43]}  b5 {[%clk 0:02:41]} 17. Ne3 {[%clk 0:02:36]}  Qxb3 {[%clk 0:02:31]} 18. axb3 {[%clk 0:02:36]}  Rd7 {[%clk 0:02:31]} 19. Ra5 {[%clk 0:02:34]}  Rb7 {[%clk 0:02:31]} 20. Nc2 {[%clk 0:02:34]}  e6 {[%clk 0:02:29]} 21. Be3 {[%clk 0:02:34]}  Nd5 {[%clk 0:02:15]} 22. Rxa7 {[%clk 0:02:24]}  Nxe3 {[%clk 0:02:10]} 23. Rxb7 {[%clk 0:02:24]}  Nxf1 {[%clk 0:02:08]} 24. Kxf1 {[%clk 0:02:23]}  h5 {[%clk 0:02:06]} 25. Rxb5 {[%clk 0:02:19]}  Rh6 {[%clk 0:02:06]} 26. Nd4 {[%clk 0:02:16]}  Kd7 {[%clk 0:02:02]} 27. Rb7+ {[%clk 0:02:14]}  Kd6 {[%clk 0:02:00]} 28. Rf7 {[%clk 0:02:07]}  Rh8 {[%clk 0:01:57]} 29. b4 {[%clk 0:02:05]}  Kd5 {[%clk 0:01:57]} 30. Rd7+ {[%clk 0:02:03]}  Kc4 {[%clk 0:01:57]} 31. Nxe6 {[%clk 0:02:04]}  Kb3 {[%clk 0:01:52]} 32. Rd8 {[%clk 0:02:04]} 1-0


[Site "https://www.chess.com"]

[Event "Early Titled Tuesday Blitz | February 8 2022"]
[White "Heinemann, Josefine"]
[Black "Gunina, Valentina"]
[WhiteFideId "12900460"]
[BlackFideId "4167570"]
[WhiteElo "2300"]
[BlackElo "2465"]
[Result "0-1"]
[Round "04"]
[TimeControl "180+1"]
[Date "2022.02.08"]
[WhiteClock "0:00:16"]
[BlackClock "0:01:58"]

1. d4 {[%clk 0:03:00]}  d5 {[%clk 0:02:59]} 2. c4 {[%clk 0:03:00]}  c6 {[%clk 0:02:59]} 3. cxd5 {[%clk 0:02:57]}  cxd5 {[%clk 0:02:59]} 4. Nc3 {[%clk 0:02:57]}  Nf6 {[%clk 0:02:59]} 5. Nf3 {[%clk 0:02:57]}  Nc6 {[%clk 0:02:59]} 6. Bf4 {[%clk 0:02:56]}  a6 {[%clk 0:02:58]} 7. e3 {[%clk 0:02:56]}  Bg4 {[%clk 0:02:53]} 8. Be2 {[%clk 0:02:55]}  e6 {[%clk 0:02:51]} 9. O-O {[%clk 0:02:55]}  Bd6 {[%clk 0:02:50]} 10. Ne5 {[%clk 0:02:45]}  Bxe2 {[%clk 0:02:49]} 11. Nxe2 {[%clk 0:02:42]}  Bxe5 {[%clk 0:02:48]} 12. Bxe5 {[%clk 0:02:40]}  Nxe5 {[%clk 0:02:36]} 13. dxe5 {[%clk 0:02:41]}  Nd7 {[%clk 0:02:37]} 14. f4 {[%clk 0:02:23]}  Rc8 {[%clk 0:02:34]} 15. Nd4 {[%clk 0:02:23]}  O-O {[%clk 0:02:33]} 16. Qh5 {[%clk 0:02:16]}  Nc5 {[%clk 0:02:29]} 17. Rf3 {[%clk 0:02:11]}  Ne4 {[%clk 0:02:29]} 18. Rh3 {[%clk 0:01:53]}  h6 {[%clk 0:02:29]} 19. Rf1 {[%clk 0:01:53]}  Qb6 {[%clk 0:02:27]} 20. b3 {[%clk 0:01:40]}  Rc3 {[%clk 0:02:22]} 21. Qf3 {[%clk 0:00:57]}  Rfc8 {[%clk 0:02:18]} 22. f5 {[%clk 0:00:43]}  Nd2 {[%clk 0:02:13]} 23. Qg4 {[%clk 0:00:39]}  Rc1 {[%clk 0:02:04]} 24. Rxc1 {[%clk 0:00:32]}  Rxc1+ {[%clk 0:02:02]} 25. Kf2 {[%clk 0:00:32]}  exf5 {[%clk 0:02:00]} 26. Nxf5 {[%clk 0:00:27]}  Rf1+ {[%clk 0:01:58]} 27. Kg3 {[%clk 0:00:17]}  Ne4+ {[%clk 0:01:58]} 28. Kh4 {[%clk 0:00:17]}  g5+ {[%clk 0:01:58]} 29. Kh5 {[%clk 0:00:16]}  Qg6# {[%clk 0:01:58]} 0-1


[Site "https://www.chess.com"]

[Event "Early Titled Tuesday Blitz | February 8 2022"]
[White "Hoffmann, Asa"]
[Black "Zarnicki, Pablo"]
[WhiteFideId "2001470"]
[BlackFideId "100137"]
[WhiteElo "2117"]
[BlackElo "2467"]
[Result "1-0"]
[Round "04"]
[TimeControl "180+1"]
[Date "2022.02.08"]
[WhiteClock "0:01:08"]
[BlackClock "0:00:26"]

1. d4 {[%clk 0:02:58]}  Nf6 {[%clk 0:02:58]} 2. Bg5 {[%clk 0:02:56]}  c5 {[%clk 0:02:57]} 3. d5 {[%clk 0:02:55]}  e6 {[%clk 0:02:56]} 4. Nc3 {[%clk 0:02:55]}  h6 {[%clk 0:02:52]} 5. Bh4 {[%clk 0:02:52]}  d6 {[%clk 0:02:49]} 6. e4 {[%clk 0:02:51]}  Be7 {[%clk 0:02:46]} 7. Bb5+ {[%clk 0:02:48]}  Bd7 {[%clk 0:02:44]} 8. dxe6 {[%clk 0:02:48]}  fxe6 {[%clk 0:02:44]} 9. Bxf6 {[%clk 0:02:46]}  Bxf6 {[%clk 0:02:41]} 10. Qh5+ {[%clk 0:02:35]}  Kf8 {[%clk 0:02:37]} 11. Bxd7 {[%clk 0:02:25]}  Nxd7 {[%clk 0:02:37]} 12. Nge2 {[%clk 0:02:25]}  Qe8 {[%clk 0:02:33]} 13. Qh3 {[%clk 0:02:22]}  a6 {[%clk 0:02:28]} 14. Rd1 {[%clk 0:02:21]}  Qe7 {[%clk 0:02:28]} 15. O-O {[%clk 0:02:20]}  g5 {[%clk 0:02:23]} 16. f4 {[%clk 0:02:17]}  Kg7 {[%clk 0:02:23]} 17. Ng3 {[%clk 0:02:14]}  Bd4+ {[%clk 0:02:16]} 18. Kh1 {[%clk 0:02:12]}  Nf6 {[%clk 0:02:16]} 19. e5 {[%clk 0:01:51]}  dxe5 {[%clk 0:02:12]} 20. fxe5 {[%clk 0:01:50]}  Bxe5 {[%clk 0:02:07]} 21. Rde1 {[%clk 0:01:43]}  Bxg3 {[%clk 0:02:06]} 22. Rxe6 {[%clk 0:01:38]}  Qd7 {[%clk 0:01:51]} 23. Rfxf6 {[%clk 0:01:26]}  Bh4 {[%clk 0:00:33]} 24. Rg6+ {[%clk 0:01:20]}  Kh7 {[%clk 0:00:32]} 25. Rxh6+ {[%clk 0:01:19]}  Kg8 {[%clk 0:00:28]} 26. Reg6+ {[%clk 0:01:19]}  Qg7 {[%clk 0:00:28]} 27. Qe6+ {[%clk 0:01:17]}  Kf8 {[%clk 0:00:28]} 28. Rxg7 {[%clk 0:01:09]}  Kxg7 {[%clk 0:00:25]} 29. Qf6+ {[%clk 0:01:09]}  Kg8 {[%clk 0:00:26]} 30. Rg6+ {[%clk 0:01:08]}  Kh7 {[%clk 0:00:26]} 31. Qg7# {[%clk 0:01:08]} 1-0


[Site "https://www.chess.com"]

[Event "Early Titled Tuesday Blitz | February 8 2022"]
[White "Howell, David W L"]
[Black "Rakhmanov, Aleksandr"]
[WhiteFideId "410608"]
[BlackFideId "4173708"]
[WhiteElo "2559"]
[BlackElo "2500"]
[Result "1/2-1/2"]
[Round "04"]
[TimeControl "180+1"]
[Date "2022.02.08"]
[WhiteClock "0:01:24"]
[BlackClock "0:00:51"]

1. e4 {[%clk 0:03:00]}  c5 {[%clk 0:02:59]} 2. Be2 {[%clk 0:03:00]}  Nf6 {[%clk 0:02:58]} 3. d3 {[%clk 0:03:01]}  d5 {[%clk 0:02:50]} 4. e5 {[%clk 0:02:49]}  Nfd7 {[%clk 0:02:48]} 5. f4 {[%clk 0:02:50]}  e6 {[%clk 0:02:47]} 6. Nf3 {[%clk 0:02:47]}  Nc6 {[%clk 0:02:43]} 7. O-O {[%clk 0:02:47]}  Be7 {[%clk 0:02:41]} 8. c3 {[%clk 0:02:44]}  O-O {[%clk 0:02:35]} 9. Na3 {[%clk 0:02:42]}  f6 {[%clk 0:02:35]} 10. d4 {[%clk 0:02:38]}  cxd4 {[%clk 0:02:27]} 11. cxd4 {[%clk 0:02:39]}  fxe5 {[%clk 0:02:27]} 12. dxe5 {[%clk 0:02:29]}  Nc5 {[%clk 0:02:14]} 13. Be3 {[%clk 0:02:26]}  Bd7 {[%clk 0:02:11]} 14. Rc1 {[%clk 0:02:21]}  Ne4 {[%clk 0:02:10]} 15. Nb5 {[%clk 0:02:18]}  a6 {[%clk 0:02:01]} 16. Nbd4 {[%clk 0:02:16]}  Rc8 {[%clk 0:02:01]} 17. a3 {[%clk 0:02:10]}  Qe8 {[%clk 0:01:46]} 18. Bd3 {[%clk 0:02:04]}  Qh5 {[%clk 0:01:41]} 19. Qe2 {[%clk 0:01:59]}  Nxd4 {[%clk 0:01:38]} 20. Nxd4 {[%clk 0:01:57]}  Qxe2 {[%clk 0:01:38]} 21. Bxe2 {[%clk 0:01:53]}  Bc5 {[%clk 0:01:33]} 22. g3 {[%clk 0:01:50]}  g6 {[%clk 0:01:06]} 23. Kg2 {[%clk 0:01:47]}  Kf7 {[%clk 0:01:03]} 24. Rfe1 {[%clk 0:01:41]}  Bxd4 {[%clk 0:00:59]} 25. Bxd4 {[%clk 0:01:41]}  Bb5 {[%clk 0:00:59]} 26. Bf3 {[%clk 0:01:38]}  Nd2 {[%clk 0:00:56]} 27. Rc3 {[%clk 0:01:33]}  Nxf3 {[%clk 0:00:54]} 28. Kxf3 {[%clk 0:01:32]}  Rxc3+ {[%clk 0:00:52]} 29. Bxc3 {[%clk 0:01:28]}  Rc8 {[%clk 0:00:52]} 30. Rd1 {[%clk 0:01:23]}  Rc4 {[%clk 0:00:51]} 31. Rd4 {[%clk 0:01:23]}  Rxd4 {[%clk 0:00:51]} 32. Bxd4 {[%clk 0:01:24]} 1/2-1/2


[Site "https://www.chess.com"]

[Event "Early Titled Tuesday Blitz | February 8 2022"]
[White "Jain, Naveen"]
[Black "Ardila, Oscar Humberto"]
[WhiteFideId "5003970"]
[BlackFideId "4404742"]
[WhiteElo "2036"]
[BlackElo "1898"]
[Result "1-0"]
[Round "04"]
[TimeControl "180+1"]
[Date "2022.02.08"]
[WhiteClock "0:00:38"]
[BlackClock "0:00:15"]

1. c4 {[%clk 0:03:00]}  Nf6 {[%clk 0:02:58]} 2. g3 {[%clk 0:03:01]}  e6 {[%clk 0:02:59]} 3. Bg2 {[%clk 0:03:01]}  c5 {[%clk 0:02:59]} 4. Nf3 {[%clk 0:03:01]}  Nc6 {[%clk 0:03:00]} 5. O-O {[%clk 0:03:01]}  Be7 {[%clk 0:03:00]} 6. b3 {[%clk 0:03:00]}  d6 {[%clk 0:03:01]} 7. Bb2 {[%clk 0:03:00]}  O-O {[%clk 0:03:01]} 8. e3 {[%clk 0:03:00]}  a6 {[%clk 0:03:01]} 9. d4 {[%clk 0:03:00]}  cxd4 {[%clk 0:03:00]} 10. exd4 {[%clk 0:03:00]}  Qc7 {[%clk 0:03:00]} 11. Qe2 {[%clk 0:02:57]}  b6 {[%clk 0:02:59]} 12. d5 {[%clk 0:02:53]}  Nd8 {[%clk 0:02:38]} 13. dxe6 {[%clk 0:02:50]}  fxe6 {[%clk 0:02:37]} 14. Nbd2 {[%clk 0:02:47]}  Rb8 {[%clk 0:02:36]} 15. Rad1 {[%clk 0:02:29]}  Bb7 {[%clk 0:02:35]} 16. Ng5 {[%clk 0:02:23]}  Bxg2 {[%clk 0:02:33]} 17. Kxg2 {[%clk 0:02:24]}  e5 {[%clk 0:02:32]} 18. Nde4 {[%clk 0:02:21]}  Qc6 {[%clk 0:02:27]} 19. Kg1 {[%clk 0:02:20]}  Nxe4 {[%clk 0:01:57]} 20. Nxe4 {[%clk 0:02:18]}  Ne6 {[%clk 0:01:53]} 21. Qd3 {[%clk 0:02:11]}  Nc5 {[%clk 0:01:46]} 22. Nxc5 {[%clk 0:02:08]}  bxc5 {[%clk 0:01:47]} 23. Qe2 {[%clk 0:01:55]}  Rf7 {[%clk 0:01:38]} 24. Qg4 {[%clk 0:01:52]}  Rbf8 {[%clk 0:01:37]} 25. Qe6 {[%clk 0:01:52]}  Qf3 {[%clk 0:01:01]} 26. Rde1 {[%clk 0:01:33]}  h5 {[%clk 0:00:59]} 27. Re3 {[%clk 0:01:33]}  Qg4 {[%clk 0:00:50]} 28. Qxg4 {[%clk 0:01:26]}  hxg4 {[%clk 0:00:33]} 29. Re4 {[%clk 0:01:27]}  Rf3 {[%clk 0:00:25]} 30. Rxg4 {[%clk 0:01:25]}  Rd3 {[%clk 0:00:25]} 31. Bc1 {[%clk 0:01:25]}  Kf7 {[%clk 0:00:22]} 32. Be3 {[%clk 0:01:21]}  Bf6 {[%clk 0:00:20]} 33. h4 {[%clk 0:01:21]}  Rc3 {[%clk 0:00:20]} 34. Rd1 {[%clk 0:01:14]}  Ke6 {[%clk 0:00:19]} 35. Kg2 {[%clk 0:01:08]}  Rc2 {[%clk 0:00:19]} 36. Rd2 {[%clk 0:01:08]}  Rxd2 {[%clk 0:00:19]} 37. Bxd2 {[%clk 0:01:08]}  Ra8 {[%clk 0:00:18]} 38. h5 {[%clk 0:01:07]}  a5 {[%clk 0:00:18]} 39. Rg6 {[%clk 0:00:59]}  Kf5 {[%clk 0:00:17]} 40. g4+ {[%clk 0:00:53]}  Ke4 {[%clk 0:00:17]} 41. g5 {[%clk 0:00:50]}  Be7 {[%clk 0:00:16]} 42. Rxg7 {[%clk 0:00:47]}  Bf8 {[%clk 0:00:17]} 43. Rg8 {[%clk 0:00:38]}  Kf5 {[%clk 0:00:16]} 44. h6 {[%clk 0:00:38]}  e4 {[%clk 0:00:15]} 45. h7 {[%clk 0:00:38]} 1-0


[Site "https://www.chess.com"]

[Event "Early Titled Tuesday Blitz | February 8 2022"]
[White "Jakubowska, Anna"]
[Black "Al Hosani, Omran"]
[WhiteFideId "1121952"]
[BlackFideId "9308733"]
[WhiteElo "1924"]
[BlackElo "2246"]
[Result "1/2-1/2"]
[Round "04"]
[TimeControl "180+1"]
[Date "2022.02.08"]
[WhiteClock "0:00:17"]
[BlackClock "0:00:12"]

1. e4 {[%clk 0:03:00]}  e5 {[%clk 0:02:56]} 2. Nf3 {[%clk 0:02:59]}  Nc6 {[%clk 0:02:56]} 3. Bb5 {[%clk 0:02:59]}  a6 {[%clk 0:02:55]} 4. Ba4 {[%clk 0:02:59]}  Nf6 {[%clk 0:02:55]} 5. O-O {[%clk 0:02:59]}  Be7 {[%clk 0:02:46]} 6. d3 {[%clk 0:02:58]}  b5 {[%clk 0:02:45]} 7. Bb3 {[%clk 0:02:58]}  d6 {[%clk 0:02:45]} 8. a4 {[%clk 0:02:58]}  Bg4 {[%clk 0:02:29]} 9. axb5 {[%clk 0:02:50]}  axb5 {[%clk 0:02:30]} 10. Rxa8 {[%clk 0:02:49]}  Qxa8 {[%clk 0:02:30]} 11. Na3 {[%clk 0:02:46]}  Nd4 {[%clk 0:02:26]} 12. c3 {[%clk 0:02:39]}  Nxf3+ {[%clk 0:02:22]} 13. gxf3 {[%clk 0:02:37]}  Bd7 {[%clk 0:02:23]} 14. f4 {[%clk 0:02:35]}  O-O {[%clk 0:02:19]} 15. fxe5 {[%clk 0:02:33]}  dxe5 {[%clk 0:02:19]} 16. f4 {[%clk 0:02:24]}  Bc5+ {[%clk 0:02:09]} 17. Kg2 {[%clk 0:02:12]}  Qc8 {[%clk 0:01:50]} 18. f5 {[%clk 0:02:08]}  Bc6 {[%clk 0:01:33]} 19. Bg5 {[%clk 0:01:55]}  Nxe4 {[%clk 0:01:21]} 20. dxe4 {[%clk 0:01:52]}  Bxe4+ {[%clk 0:01:22]} 21. Kg3 {[%clk 0:01:50]}  Bxf5 {[%clk 0:01:22]} 22. Nxb5 {[%clk 0:01:35]}  h6 {[%clk 0:01:10]} 23. Bc1 {[%clk 0:01:25]}  Qa6 {[%clk 0:01:03]} 24. Rxf5 {[%clk 0:01:13]}  Qxb5 {[%clk 0:01:00]} 25. Rxf7 {[%clk 0:00:42]}  Rxf7 {[%clk 0:00:55]} 26. Qd5 {[%clk 0:00:42]}  Bf2+ {[%clk 0:00:34]} 27. Kg2 {[%clk 0:00:41]}  Qxd5+ {[%clk 0:00:30]} 28. Bxd5 {[%clk 0:00:42]}  Bc5 {[%clk 0:00:28]} 29. b4 {[%clk 0:00:42]}  Bd6 {[%clk 0:00:28]} 30. Bd2 {[%clk 0:00:38]}  Kf8 {[%clk 0:00:28]} 31. Bxf7 {[%clk 0:00:38]}  Kxf7 {[%clk 0:00:29]} 32. c4 {[%clk 0:00:39]}  Ke6 {[%clk 0:00:29]} 33. Kf3 {[%clk 0:00:39]}  Kf5 {[%clk 0:00:29]} 34. c5 {[%clk 0:00:37]}  e4+ {[%clk 0:00:29]} 35. Kg2 {[%clk 0:00:34]}  Be5 {[%clk 0:00:28]} 36. b5 {[%clk 0:00:33]}  Bd4 {[%clk 0:00:26]} 37. Bb4 {[%clk 0:00:33]}  e3 {[%clk 0:00:20]} 38. c6 {[%clk 0:00:33]}  Ke4 {[%clk 0:00:17]} 39. Bd6 {[%clk 0:00:30]}  e2 {[%clk 0:00:12]} 40. Bg3 {[%clk 0:00:30]}  Kd3 {[%clk 0:00:11]} 41. Be1 {[%clk 0:00:30]}  Bc3 {[%clk 0:00:10]} 42. Kf2 {[%clk 0:00:28]}  Bd4+ {[%clk 0:00:09]} 43. Kf3 {[%clk 0:00:28]}  Bb6 {[%clk 0:00:10]} 44. Bg3 {[%clk 0:00:24]}  g6 {[%clk 0:00:09]} 45. Be1 {[%clk 0:00:23]}  Kc4 {[%clk 0:00:09]} 46. Kxe2 {[%clk 0:00:23]}  Kxb5 {[%clk 0:00:10]} 47. Bd2 {[%clk 0:00:23]}  h5 {[%clk 0:00:10]} 48. Kf3 {[%clk 0:00:20]}  Kxc6 {[%clk 0:00:10]} 49. Kf4 {[%clk 0:00:20]}  Bg1 {[%clk 0:00:08]} 50. h3 {[%clk 0:00:18]}  Kd5 {[%clk 0:00:07]} 51. Kg5 {[%clk 0:00:18]}  c5 {[%clk 0:00:07]} 52. Kxg6 {[%clk 0:00:19]}  h4 {[%clk 0:00:07]} 53. Kg5 {[%clk 0:00:19]}  Bf2 {[%clk 0:00:07]} 54. Kg4 {[%clk 0:00:18]}  Kd4 {[%clk 0:00:08]} 55. Kf3 {[%clk 0:00:18]}  Kd3 {[%clk 0:00:08]} 56. Ba5 {[%clk 0:00:17]}  Bg3 {[%clk 0:00:07]} 57. Kg2 {[%clk 0:00:15]}  c4 {[%clk 0:00:07]} 58. Kh1 {[%clk 0:00:15]}  c3 {[%clk 0:00:08]} 59. Bxc3 {[%clk 0:00:16]}  Kxc3 {[%clk 0:00:05]} 60. Kg1 {[%clk 0:00:16]}  Kd3 {[%clk 0:00:05]} 61. Kh1 {[%clk 0:00:17]}  Ke4 {[%clk 0:00:06]} 62. Kg1 {[%clk 0:00:17]}  Kf3 {[%clk 0:00:06]} 63. Kh1 {[%clk 0:00:17]}  Bf2 {[%clk 0:00:07]} 64. Kh2 {[%clk 0:00:17]}  Ke4 {[%clk 0:00:08]} 65. Kh1 {[%clk 0:00:17]}  Kf4 {[%clk 0:00:08]} 66. Kg2 {[%clk 0:00:18]}  Bg1 {[%clk 0:00:08]} 67. Kxg1 {[%clk 0:00:15]}  Kg3 {[%clk 0:00:09]} 68. Kh1 {[%clk 0:00:15]}  Kxh3 {[%clk 0:00:10]} 69. Kg1 {[%clk 0:00:15]}  Kg3 {[%clk 0:00:11]} 70. Kh1 {[%clk 0:00:16]}  h3 {[%clk 0:00:11]} 71. Kg1 {[%clk 0:00:16]}  h2+ {[%clk 0:00:12]} 72. Kh1 {[%clk 0:00:17]}  Kh3 {[%clk 0:00:12]} 1/2-1/2


[Site "https://www.chess.com"]

[Event "Early Titled Tuesday Blitz | February 8 2022"]
[White "Jakubowski, Krzysztof"]
[Black "Samunenkov, Ihor"]
[WhiteFideId "1112848"]
[BlackFideId "14187086"]
[WhiteElo "2365"]
[BlackElo "2406"]
[Result "0-1"]
[Round "04"]
[TimeControl "180+1"]
[Date "2022.02.08"]
[WhiteClock "0:00:06"]
[BlackClock "0:00:15"]

1. e4 {[%clk 0:03:00]}  c6 {[%clk 0:03:00]} 2. d4 {[%clk 0:02:58]}  d5 {[%clk 0:03:00]} 3. e5 {[%clk 0:02:58]}  c5 {[%clk 0:03:00]} 4. dxc5 {[%clk 0:02:57]}  e6 {[%clk 0:03:00]} 5. a3 {[%clk 0:02:56]}  Bxc5 {[%clk 0:03:00]} 6. b4 {[%clk 0:02:55]}  Be7 {[%clk 0:03:01]} 7. Qg4 {[%clk 0:02:52]}  g6 {[%clk 0:03:00]} 8. Nf3 {[%clk 0:02:50]}  a5 {[%clk 0:02:56]} 9. b5 {[%clk 0:02:49]}  Nd7 {[%clk 0:02:56]} 10. Bd3 {[%clk 0:02:43]}  Nc5 {[%clk 0:02:34]} 11. h4 {[%clk 0:02:31]}  h5 {[%clk 0:02:32]} 12. Qf4 {[%clk 0:02:30]}  Nh6 {[%clk 0:02:30]} 13. Be3 {[%clk 0:02:25]}  Nxd3+ {[%clk 0:02:22]} 14. cxd3 {[%clk 0:02:24]}  Nf5 {[%clk 0:02:23]} 15. Nbd2 {[%clk 0:02:19]}  a4 {[%clk 0:02:13]} 16. Nd4 {[%clk 0:01:39]}  Nxh4 {[%clk 0:02:02]} 17. O-O {[%clk 0:01:37]}  g5 {[%clk 0:01:58]} 18. Qh2 {[%clk 0:01:30]}  Nf5 {[%clk 0:01:33]} 19. N2f3 {[%clk 0:01:12]}  Nxe3 {[%clk 0:01:23]} 20. fxe3 {[%clk 0:01:11]}  g4 {[%clk 0:01:23]} 21. Ne1 {[%clk 0:01:06]}  Bg5 {[%clk 0:01:20]} 22. Nec2 {[%clk 0:01:05]}  h4 {[%clk 0:01:17]} 23. g3 {[%clk 0:00:48]}  Qe7 {[%clk 0:01:15]} 24. Qe2 {[%clk 0:00:39]}  hxg3 {[%clk 0:00:50]} 25. Qxg4 {[%clk 0:00:35]}  Bd7 {[%clk 0:00:40]} 26. Rf3 {[%clk 0:00:28]}  Rh4 {[%clk 0:00:36]} 27. Qxg3 {[%clk 0:00:25]}  O-O-O {[%clk 0:00:36]} 28. Kf2 {[%clk 0:00:17]}  Rxd4 {[%clk 0:00:31]} 29. Ke2 {[%clk 0:00:12]}  Rh4 {[%clk 0:00:27]} 30. Raf1 {[%clk 0:00:12]}  Rf8 {[%clk 0:00:19]} 31. Qe1 {[%clk 0:00:07]}  Rh2+ {[%clk 0:00:16]} 32. Kd1 {[%clk 0:00:07]}  Qc5 {[%clk 0:00:15]} 33. R3f2 {[%clk 0:00:06]}  Rxf2 {[%clk 0:00:15]} 34. Rxf2 {[%clk 0:00:07]}  Qxb5 {[%clk 0:00:15]} 35. Qg1 {[%clk 0:00:06]} 0-1


[Site "https://www.chess.com"]